bitfinex-derivatives/quotes_BTCF0:USTF0_20250905
["timestamp","ask_amount","ask_price","bid_price","bid_amount"]
[1757111441771,0.12541507,110740.0,110730.0,0.1120932]
[1757111441962,0.12541507,110740.0,110730.0,0.97259304]
[1757111442365,0.03083207,110750.0,110730.0,0.97259304]
[1757111442566,0.03083207,110750.0,110740.0,1.66259513]
[1757111443876,0.001,110750.0,110740.0,2.08408149]
[1757111444071,0.07723398,110770.0,110760.0,0.02179]
[1757111444271,0.07723398,110770.0,110760.0,1.30673586]
[1757111445272,0.32923398,110770.0,110760.0,1.30673586]
[1757111445472,0.04302398,110770.0,110760.0,1.79896879]
[1757111445673,0.04302398,110770.0,110760.0,1.88015501]
[1757111447176,0.04402398,110770.0,110760.0,1.88015501]
[1757111447375,0.04402398,110770.0,110760.0,1.95254211]
[1757111447580,0.04302398,110770.0,110760.0,1.95254211]
[1757111447786,0.04302398,110770.0,110760.0,2.04282061]
[1757111448074,0.04302398,110770.0,110760.0,1.96155439]
[1757111448679,0.04302398,110770.0,110760.0,1.14187439]
[1757111448977,0.04302398,110770.0,110760.0,1.96151439]
[1757111449584,0.04302398,110770.0,110760.0,1.97072329]
[1757111452183,0.04302398,110770.0,110760.0,2.05190951]
[1757111453089,0.04302398,110770.0,110760.0,1.23226951]
[1757111453387,0.04302398,110770.0,110760.0,1.80198951]
[1757111453987,0.04302398,110770.0,110760.0,1.72080329]
[1757111454289,0.04302398,110770.0,110760.0,1.8016548]
[1757111454992,0.05506446,110790.0,110780.0,0.01965]
[1757111455191,0.05506446,110790.0,110780.0,1.24299654]
[1757111455392,0.05437232,110800.0,110790.0,0.109904]
[1757111456690,0.05437232,110800.0,110790.0,0.930104]
[1757111456987,0.05437232,110800.0,110790.0,1.01095551]
[1757111457187,0.05437232,110800.0,110790.0,0.930104]
[1757111457588,0.05637232,110800.0,110790.0,0.930104]
[1757111457900,0.05737232,110800.0,110790.0,0.930104]
[1757111458087,0.05737232,110800.0,110790.0,1.62788279]
[1757111458994,0.05737232,110800.0,110790.0,1.39528986]
[1757111459183,0.05737232,110800.0,110790.0,0.48483586]
[1757111459495,0.05437232,110800.0,110790.0,1.39640986]
[1757111460197,0.05437232,110800.0,110790.0,0.57608986]
[1757111460399,0.05437232,110800.0,110790.0,1.62900279]
[1757111460592,0.05437232,110800.0,110790.0,0.80868279]
[1757111460898,0.05437232,110800.0,110790.0,1.62900279]
[1757111461097,0.05437232,110800.0,110790.0,0.80868279]
[1757111461298,0.05437232,110800.0,110790.0,1.62896279]
[1757111461496,0.05437232,110800.0,110790.0,1.3956571]
[1757111461794,0.05437232,110800.0,110790.0,0.5753771]
[1757111462102,0.05437232,110800.0,110790.0,1.3955771]
[1757111465304,0.05437232,110800.0,110790.0,0.5753771]
[1757111465504,0.05437232,110800.0,110790.0,1.3953771]
[1757111468402,0.05576585,110810.0,110800.0,0.0902458]
[1757111468598,0.06850862,110820.0,110810.0,0.0902377]
[1757111468906,0.07146751,110830.0,110820.0,0.01965]
[1757111469205,0.07146751,110830.0,110820.0,0.55738041]
[1757111469407,0.07146751,110830.0,110820.0,0.4841231]
[1757111469606,0.07146751,110830.0,110820.0,1.3040431]
[1757111470106,0.07146751,110830.0,110820.0,0.4841231]
[1757111470404,0.35764751,110830.0,110820.0,0.81984]
[1757111470702,0.59088406,110830.0,110800.0,1.97659655]
[1757111470894,0.01357,110810.0,110800.0,1.74436]
[1757111471096,0.01357,110810.0,110800.0,2.79675655]
[1757111471706,0.03518,110820.0,110810.0,0.01965]
[1757111471903,0.03518,110820.0,110810.0,0.25188655]
[1757111472405,0.28518,110820.0,110810.0,0.25188655]
[1757111475201,0.28518,110820.0,110810.0,0.84093]
[1757111475406,0.28528,110820.0,110810.0,1.07316655]
[1757111487219,0.28528,110820.0,110810.0,0.25188655]
[1757111487418,0.28528,110820.0,110810.0,1.08216655]
[1757111491521,0.2501,110820.0,110810.0,1.09444655]
[1757111492024,0.26331,110820.0,110810.0,1.08216655]
[1757111499020,0.26331,110820.0,110810.0,1.16301806]
[1757111499425,0.01331,110820.0,110810.0,1.16301806]
[1757111499727,0.03525,110820.0,110810.0,0.33273806]
[1757111499925,0.03525,110820.0,110810.0,1.16277806]
[1757111501630,0.03525,110820.0,110810.0,1.16273806]
[1757111505229,0.0001,110820.0,110810.0,1.48521301]
[1757111505434,0.0001,110820.0,110810.0,1.4043615]
[1757111505732,0.0001,110820.0,110810.0,1.6543615]
[1757111506132,0.07146751,110830.0,110820.0,0.1098803]
[1757111506432,0.07146751,110830.0,110820.0,0.5743534]
[1757111506827,0.07146751,110830.0,110820.0,0.68805974]
[1757111507227,0.07146751,110830.0,110820.0,0.4841231]
[1757111507628,0.07346751,110830.0,110820.0,0.4841231]
[1757111508929,0.07346751,110830.0,110820.0,0.5835544]
[1757111509439,0.07346751,110830.0,110820.0,0.8335544]
[1757111509734,0.07346751,110830.0,110820.0,1.78118074]
[1757111509936,0.07346751,110830.0,110820.0,1.6674744]
[1757111510239,0.07346751,110830.0,110820.0,1.27766157]
[1757111510530,0.07246751,110830.0,110820.0,1.74213467]
[1757111510739,0.07146751,110830.0,110820.0,1.74213467]
[1757111510935,0.06446751,110830.0,110820.0,0.90737467]
[1757111511132,0.10040751,110830.0,110820.0,1.65354437]
[1757111511435,0.07820751,110830.0,110820.0,1.65354437]
[1757111511630,0.06446751,110830.0,110820.0,1.65354437]
[1757111512235,0.06446751,110830.0,110820.0,0.93054637]
[1757111512437,0.06446751,110830.0,110820.0,1.76686637]
[1757111513037,0.06446751,110830.0,110820.0,1.30203327]
[1757111513232,0.06446751,110830.0,110820.0,1.76650637]
[1757111514234,0.06446751,110830.0,110820.0,1.85673667]
[1757111516335,0.06446751,110830.0,110820.0,1.02077667]
[1757111516534,0.06446751,110830.0,110820.0,1.85645667]
[1757111520640,0.08666751,110830.0,110820.0,1.01147406]
[1757111520831,0.10040751,110830.0,110820.0,1.50598537]
[1757111521035,0.10040751,110830.0,110820.0,1.50590537]
[1757111522129,0.10040751,110830.0,110820.0,0.20687227]
[1757111522334,0.10040751,110830.0,110820.0,1.47344287]
[1757111523444,0.10040751,110830.0,110820.0,1.47332749]
[1757111524344,0.10040751,110830.0,110820.0,1.39238799]
[1757111526842,0.06446751,110830.0,110820.0,1.62456685]
[1757111527043,0.06456751,110830.0,110820.0,1.62456685]
[1757111527347,0.06456751,110830.0,110820.0,1.70554231]
[1757111529152,0.06456751,110830.0,110820.0,1.62456685]
[1757111529444,0.06456751,110830.0,110820.0,1.70554231]
[1757111529847,0.07830751,110830.0,110820.0,1.70554231]
[1757111530547,0.07830751,110830.0,110820.0,1.47336345]
[1757111531146,0.10050751,110830.0,110820.0,0.63880345]
[1757111531347,0.10050751,110830.0,110820.0,1.47224345]
[1757111531547,0.10050751,110830.0,110820.0,0.63880345]
[1757111531751,0.10050751,110830.0,110820.0,1.47252345]
[1757111532951,0.10050751,110830.0,110820.0,1.47244345]
[1757111534651,0.10050751,110830.0,110820.0,0.63880345]
[1757111534851,0.10050751,110830.0,110820.0,1.47232345]
[1757111536656,0.10050751,110830.0,110820.0,1.50474999]
[1757111537754,0.10050751,110830.0,110820.0,0.67122999]
[1757111537955,0.10050751,110830.0,110820.0,1.50430999]
[1757111538258,0.10050751,110830.0,110820.0,1.39090799]
[1757111538954,0.10050751,110830.0,110820.0,1.39050799]
[1757111539558,0.10050751,110830.0,110820.0,1.62268685]
[1757111539854,0.07830751,110830.0,110820.0,1.62268685]
[1757111541442,0.07830751,110830.0,110820.0,1.50410138]
[1757111541950,0.09997751,110830.0,110820.0,1.50374138]
[1757111542452,0.09997751,110830.0,110820.0,1.39014799]
[1757111542652,0.09997751,110830.0,110820.0,1.38998799]
[1757111542954,0.09997751,110830.0,110820.0,1.38986799]
[1757111544550,0.09997751,110830.0,110820.0,1.62204685]
[1757111544951,0.09997751,110830.0,110820.0,1.38986799]
[1757111546556,0.07830751,110830.0,110820.0,1.62204685]
[1757111547059,0.07830751,110830.0,110820.0,1.73564024]
[1757111548759,0.07830751,110830.0,110820.0,1.62204685]
[1757111556470,0.06456751,110830.0,110820.0,1.62204685]
[1757111556665,0.06456751,110830.0,110820.0,1.87204685]
[1757111556857,0.06456751,110830.0,110820.0,1.98564024]
[1757111557561,0.06456751,110830.0,110820.0,2.07587054]
[1757111559264,0.06456751,110830.0,110820.0,1.82587054]
[1757111559969,0.06456751,110830.0,110820.0,1.71227715]
[1757111560555,0.06456751,110830.0,110820.0,1.82595983]
[1757111564170,0.05928751,110830.0,110820.0,1.82595983]
[1757111565871,0.05928751,110830.0,110820.0,1.96227715]
[1757111566566,0.05928751,110830.0,110820.0,2.07595983]
[1757111567363,0.0759011,110840.0,110830.0,0.78675868]
[1757111568765,0.0769011,110840.0,110830.0,0.78675868]
[1757111568966,0.0779011,110840.0,110830.0,0.78675868]
[1757111569366,0.0779011,110840.0,110830.0,0.86788087]
[1757111570065,0.0779011,110840.0,110830.0,0.78675868]
[1757111570372,0.0779011,110840.0,110830.0,0.90044136]
[1757111571573,0.0779011,110840.0,110830.0,1.72996136]
[1757111572167,0.0779011,110840.0,110830.0,1.61627868]
[1757111572767,0.0779011,110840.0,110830.0,1.72981428]
[1757111577675,0.0779011,110840.0,110830.0,1.61627868]
[1757111578671,0.0779011,110840.0,110830.0,1.61559868]
[1757111578871,0.0779011,110840.0,110830.0,0.78675868]
[1757111579071,0.0779011,110840.0,110830.0,1.29299772]
[1757111579269,0.0779011,110840.0,110830.0,0.46435772]
[1757111579471,0.0779011,110840.0,110830.0,1.29303772]
[1757111579880,0.1136911,110840.0,110830.0,1.29311772]
[1757111580177,0.0912711,110840.0,110830.0,1.29311772]
[1757111580373,0.0779011,110840.0,110830.0,1.29311772]
[1757111581177,0.3412711,110840.0,110830.0,1.29311772]
[1757111581381,0.3636911,110840.0,110830.0,0.46435772]
[1757111581577,0.3412711,110840.0,110830.0,1.29303772]
[1757111582481,0.3279011,110840.0,110830.0,1.29303772]
[1757111583484,0.3279011,110840.0,110830.0,1.06078401]
[1757111584486,0.3279011,110840.0,110830.0,1.17431961]
[1757111585586,0.3279011,110840.0,110830.0,1.17479961]
[1757111585790,0.3636911,110840.0,110830.0,1.17451961]
[1757111585979,0.3637911,110840.0,110830.0,0.34563961]
[1757111586388,0.3637911,110840.0,110830.0,1.17443961]
[1757111586584,0.3637911,110840.0,110830.0,1.06090401]
[1757111586989,0.3637911,110840.0,110830.0,1.17443961]
[1757111588490,0.3637911,110840.0,110830.0,1.06090401]
[1757111591390,0.1137911,110840.0,110830.0,0.23210401]
[1757111591787,0.1137911,110840.0,110830.0,1.06018401]
[1757111593296,0.1137911,110840.0,110830.0,0.23210401]
[1757111593495,0.1137911,110840.0,110830.0,1.06014401]
[1757111596995,0.1137911,110840.0,110830.0,1.05946401]
[1757111597192,0.1137911,110840.0,110830.0,0.23210401]
[1757111597387,0.1137911,110840.0,110830.0,1.17307438]
[1757111601100,0.0913711,110840.0,110830.0,1.17307438]
[1757111601792,0.1140211,110840.0,110830.0,0.34571438]
[1757111601993,0.1140211,110840.0,110830.0,1.17335438]
[1757111603499,0.1120211,110840.0,110830.0,1.17435438]
[1757111615599,0.1120211,110840.0,110830.0,1.06074401]
[1757111616005,0.1120211,110840.0,110830.0,1.22346506]
[1757111617605,0.1120211,110840.0,110830.0,1.06074401]
[1757111619199,0.1120211,110840.0,110830.0,1.22346506]
[1757111620800,0.1120211,110840.0,110830.0,1.17437062]
[1757111628513,0.1120211,110840.0,110830.0,1.06074401]
[1757111629511,0.1120211,110840.0,110830.0,0.23310401]
[1757111629714,0.1120211,110840.0,110830.0,1.05854401]
[1757111631109,0.1120211,110840.0,110830.0,1.05838401]
[1757111631503,0.1120211,110840.0,110830.0,1.17197892]
[1757111633816,0.1120211,110840.0,110830.0,1.05838401]
[1757111635918,0.1120211,110840.0,110830.0,1.17145988]
[1757111638420,0.1120211,110840.0,110830.0,0.93935587]
[1757111638719,0.1120211,110840.0,110830.0,1.17145988]
[1757111640121,0.1120211,110840.0,110830.0,0.34669988]
[1757111640320,0.1120211,110840.0,110830.0,1.17113988]
[1757111641414,0.1120211,110840.0,110830.0,0.34669988]
[1757111641614,0.1120211,110840.0,110830.0,1.17113988]
[1757111643020,0.1120211,110840.0,110830.0,1.17097988]
[1757111645429,0.1120211,110840.0,110830.0,1.40311599]
[1757111653638,0.1120211,110840.0,110830.0,1.28952012]
[1757111654435,0.1120211,110840.0,110830.0,0.57879396]
[1757111654635,0.3620211,110840.0,110830.0,0.3466739]
[1757111654936,0.3620211,110840.0,110830.0,1.1700739]
[1757111655538,0.3620211,110840.0,110830.0,0.93795384]
[1757111655728,0.3620211,110840.0,110830.0,1.1700739]
[1757111656535,0.3620211,110840.0,110830.0,1.40219396]
[1757111658036,0.3620211,110840.0,110830.0,1.28864012]
[1757111659739,0.3620211,110840.0,110830.0,1.40216605]
[1757111663638,0.3620211,110840.0,110830.0,0.93792593]
[1757111663834,0.3620211,110840.0,110830.0,1.40216605]
[1757111667145,0.0760011,110840.0,110830.0,1.40216605]
[1757111667338,0.0760011,110840.0,110830.0,1.97450821]
[1757111667841,0.0760011,110840.0,110830.0,1.74238815]
[1757111668042,0.0760011,110840.0,110830.0,1.65216605]
[1757111670246,0.0760011,110840.0,110830.0,1.53864012]
[1757111674549,0.0760011,110840.0,110830.0,1.6521405]
[1757111679260,0.0760011,110840.0,110830.0,1.4021405]
[1757111679861,0.0891511,110840.0,110830.0,1.4021405]
[1757111696556,0.0891511,110840.0,110830.0,1.28864012]
[1757111696964,0.0891511,110840.0,110830.0,1.4021706]
[1757111697266,0.0891511,110840.0,110830.0,1.28864012]
[1757111698064,0.0891511,110840.0,110830.0,1.40219548]
[1757111698569,0.0891511,110840.0,110830.0,1.28864012]
[1757111699068,0.0891511,110840.0,110830.0,1.40219938]
[1757111700863,0.0760011,110840.0,110830.0,1.40219938]
[1757111704269,0.0889811,110840.0,110830.0,1.40219938]
[1757111704764,0.0760011,110840.0,110830.0,1.40219938]
[1757111705063,0.0760011,110840.0,110830.0,1.49242148]
[1757111705265,0.0760011,110840.0,110830.0,1.0282057]
[1757111705465,0.0760011,110840.0,110830.0,1.26029769]
[1757111706469,0.0760011,110840.0,110830.0,1.17007559]
[1757111706969,0.0760011,110840.0,110830.0,1.05649199]
[1757111707171,0.0889811,110840.0,110830.0,1.05649199]
[1757111709171,0.0760011,110840.0,110830.0,1.05649199]
[1757111711772,0.0760011,110840.0,110830.0,1.14671409]
[1757111712071,0.0760011,110840.0,110830.0,1.26029037]
[1757111713368,0.0760011,110840.0,110830.0,1.74238236]
[1757111715974,0.0760011,110840.0,110830.0,1.62880608]
[1757111717374,0.0760011,110840.0,110830.0,0.80540608]
[1757111717575,0.1104611,110840.0,110830.0,1.39655409]
[1757111718363,0.1104611,110840.0,110830.0,0.48309199]
[1757111718562,0.1104611,110840.0,110830.0,1.30633199]
[1757111720977,0.1104611,110840.0,110830.0,1.41990827]
[1757111721278,0.0893211,110840.0,110830.0,1.41990827]
[1757111724776,0.1104611,110840.0,110830.0,1.16986827]
[1757111728889,0.1104611,110840.0,110830.0,1.16982827]
[1757111736980,0.1104611,110840.0,110830.0,0.93773628]
[1757111737289,0.1104611,110840.0,110830.0,1.25143336]
[1757111737590,0.1104611,110840.0,110830.0,1.17034827]
[1757111738193,0.3604611,110840.0,110830.0,0.90573599]
[1757111738394,0.3604611,110840.0,110830.0,1.13794798]
[1757111739087,0.3604611,110840.0,110830.0,0.001]
[1757111739295,0.1104611,110840.0,110830.0,0.8248]
[1757111739494,0.1104611,110840.0,110830.0,0.001]
[1757111742099,0.01332,110830.0,110820.0,1.13726322]
[1757111742298,0.01342,110830.0,110820.0,1.13716322]
[1757111743301,0.01442,110830.0,110820.0,1.13716322]
[1757111745505,0.01442,110830.0,110820.0,1.36925521]
[1757111748012,0.03556,110830.0,110820.0,0.54541521]
[1757111748201,0.03556,110830.0,110820.0,1.36913521]
[1757111767421,0.03556,110830.0,110820.0,1.36933431]
[1757111768014,0.03556,110830.0,110820.0,0.54561431]
[1757111768214,0.03556,110830.0,110820.0,1.36893431]
[1757111772626,0.03556,110830.0,110820.0,1.28783832]
[1757111773325,0.03556,110830.0,110820.0,1.4014146]
[1757111778837,0.03556,110830.0,110820.0,1.28783832]
[1757111782838,0.03556,110830.0,110820.0,1.4014146]
[1757111786040,0.03556,110830.0,110820.0,0.93703152]
[1757111786342,0.01442,110830.0,110820.0,1.96473088]
[1757111786543,0.01442,110830.0,110820.0,1.85115434]
[1757111787841,0.08948743,110870.0,110860.0,0.0901977]
[1757111788047,0.13297381,110880.0,110860.0,0.8678968]
[1757111788345,0.21670917,110880.0,110870.0,1.11082308]
[1757111788539,0.18155917,110880.0,110870.0,1.11082308]
[1757111789940,0.18255917,110880.0,110870.0,1.68320422]
[1757111790144,0.09882381,110880.0,110870.0,1.68320422]
[1757111790340,0.01399,110890.0,110870.0,1.68320422]
[1757111790545,0.01399,110890.0,110880.0,0.69657462]
[1757111790546,0.09772536,110890.0,110880.0,0.69657462]
[1757111790745,0.09762536,110890.0,110880.0,0.69657462]
[1757111791548,0.09862536,110890.0,110880.0,0.69657462]
[1757111791749,0.17452646,110890.0,110880.0,0.70570062]
[1757111792442,0.19778646,110890.0,110880.0,0.70570062]
[1757111793047,0.19878646,110890.0,110880.0,0.70570062]
[1757111793737,0.19878646,110890.0,110880.0,0.77642225]
[1757111795645,0.19778646,110890.0,110880.0,0.77642225]
[1757111795841,0.19578646,110890.0,110880.0,0.77642225]
[1757111796047,0.19678646,110890.0,110880.0,0.77642225]
[1757111797748,0.19678646,110890.0,110880.0,1.59934225]
[1757111798448,0.19678646,110890.0,110880.0,0.76729625]
[1757111798648,0.08573536,110890.0,110880.0,0.85747775]
[1757111798846,0.08573536,110890.0,110880.0,1.68039775]
[1757111799248,0.002,110890.0,110880.0,1.68039775]
[1757111799645,0.002,110890.0,110880.0,0.85747775]
[1757111799844,0.002,110890.0,110880.0,1.68035775]
[1757111800752,0.002,110890.0,110880.0,1.68932293]
[1757111802754,0.0779011,110890.0,110880.0,1.68932293]
[1757111802953,0.08573536,110890.0,110880.0,1.68932293]
[1757111803443,0.08573536,110890.0,110880.0,0.86644293]
[1757111803646,0.08573536,110890.0,110880.0,1.68928293]
[1757111806053,0.08573536,110890.0,110880.0,1.68924293]
[1757111807243,0.08573536,110890.0,110880.0,0.86644293]
[1757111807448,0.08583536,110890.0,110880.0,1.70744098]
[1757111808656,0.08583536,110890.0,110880.0,1.70740098]
[1757111811051,0.19753646,110890.0,110880.0,1.38502794]
[1757111811258,0.44753646,110890.0,110880.0,0.56226794]
[1757111811454,0.44753646,110890.0,110880.0,1.61717948]
[1757111812056,0.44753646,110890.0,110880.0,1.37602276]
[1757111812558,0.44753646,110890.0,110880.0,1.6082143]
[1757111812761,0.37163536,110890.0,110880.0,1.6082143]
[1757111812959,0.44753646,110890.0,110880.0,0.7854943]
[1757111813157,0.44753646,110890.0,110880.0,1.6082143]
[1757111814759,0.44753646,110890.0,110880.0,1.61705618]
[1757111815749,0.44753646,110890.0,110880.0,0.92048156]
[1757111815953,0.44753646,110890.0,110880.0,1.61705618]
[1757111819064,0.19753646,110890.0,110880.0,0.08891968]
[1757111819361,0.44753646,110890.0,110880.0,1.26814276]
[1757111819561,0.44753646,110890.0,110880.0,1.37594276]
[1757111819764,0.44753646,110890.0,110880.0,0.55330276]
[1757111819965,0.44753646,110890.0,110880.0,1.14375122]
[1757111820169,0.44753646,110890.0,110880.0,1.37594276]
[1757111821970,0.44753646,110890.0,110880.0,0.55330276]
[1757111822166,0.0358,110860.0,110850.0,0.17132968]
[1757111822370,0.0358,110860.0,110850.0,1.37722828]
[1757111822572,0.1117011,110860.0,110850.0,1.45835276]
[1757111823165,0.1117011,110860.0,110850.0,1.45935276]
[1757111823473,0.1117011,110860.0,110850.0,1.36914756]
[1757111823671,0.1117011,110860.0,110850.0,1.37214756]
[1757111824073,0.1117011,110860.0,110850.0,0.54950756]
[1757111824274,0.1117011,110860.0,110850.0,1.46235346]
[1757111825575,0.1117011,110860.0,110850.0,1.37214756]
[1757111826772,0.0894511,110860.0,110850.0,1.37214756]
[1757111827277,0.0894511,110860.0,110850.0,2.37214756]
[1757111827468,0.0894511,110860.0,110850.0,2.37179618]
[1757111829478,0.0894511,110860.0,110850.0,2.46200208]
[1757111829977,1.0894511,110860.0,110850.0,2.46200208]
[1757111835582,1.0894511,110860.0,110850.0,1.99797038]
[1757111835778,1.0894511,110860.0,110850.0,2.46200208]
[1757111836181,1.0894511,110860.0,110850.0,1.99797038]
[1757111836367,1.0894511,110860.0,110850.0,2.46200208]
[1757111841386,1.0894511,110860.0,110850.0,2.3808776]
[1757111841587,1.0895511,110860.0,110850.0,2.3808776]
[1757111842885,1.01365,110860.0,110850.0,2.3808776]
[1757111843081,1.0895511,110860.0,110850.0,2.3808776]
[1757111843686,1.0895511,110860.0,110850.0,2.49445388]
[1757111846095,1.0895511,110860.0,110850.0,2.40492798]
[1757111846894,1.0895511,110860.0,110850.0,2.49513388]
[1757111847597,1.0895511,110860.0,110850.0,2.3815576]
[1757111848296,1.0895511,110860.0,110850.0,2.2913517]
[1757111858406,1.0760011,110860.0,110850.0,2.2913517]
[1757111860010,0.45946937,110860.0,110850.0,2.86357305]
[1757111860207,0.23735179,110860.0,110850.0,2.99975509]
[1757111860408,0.00013524,110870.0,110860.0,0.0901973]
[1757111860710,0.0001,110890.0,110870.0,0.0901877]
[1757111861008,0.0759011,110880.0,110870.0,0.0901877]
[1757111861209,0.0759011,110880.0,110870.0,0.9129877]
[1757111861409,0.0001,110890.0,110870.0,0.9129877]
[1757111861600,0.0759011,110880.0,110870.0,0.9129877]
[1757111861802,0.0759011,110880.0,110870.0,0.9139877]
[1757111862004,0.0001,110890.0,110870.0,1.3780194]
[1757111862206,0.0759011,110880.0,110870.0,0.9139877]
[1757111862608,0.0001,110890.0,110870.0,0.9139877]
[1757111862804,0.0001,110890.0,110880.0,0.11309427]
[1757111863000,0.0347,110900.0,110880.0,0.11309427]
[1757111863205,0.0347,110900.0,110890.0,1.13553341]
[1757111863402,0.0346,110900.0,110890.0,1.13553341]
[1757111863598,0.1105011,110900.0,110890.0,1.13553341]
[1757111864013,0.1115011,110900.0,110890.0,1.13553341]
[1757111864416,0.1135011,110900.0,110890.0,1.13553341]
[1757111864614,0.1145011,110900.0,110890.0,1.13553341]
[1757111867013,0.1145011,110900.0,110890.0,1.05477585]
[1757111867212,0.1145011,110900.0,110890.0,1.13553341]
[1757111868612,0.1145011,110900.0,110890.0,1.05477585]
[1757111868814,0.1145011,110900.0,110890.0,0.82276]
[1757111869015,0.1145011,110900.0,110890.0,1.05477585]
[1757111870218,0.1145011,110900.0,110890.0,1.13553341]
[1757111870914,0.1145011,110900.0,110890.0,1.05477585]
[1757111872616,0.0386,110900.0,110890.0,1.05477585]
[1757111873009,0.1145011,110900.0,110890.0,1.05477585]
[1757111876818,0.1145011,110900.0,110890.0,1.13553341]
[1757111880520,0.1145011,110900.0,110890.0,1.14448425]
[1757111880716,0.1146011,110900.0,110890.0,1.14448425]
[1757111881619,0.1146011,110900.0,110890.0,1.14432425]
[1757111882120,0.1146011,110900.0,110890.0,0.31277341]
[1757111882320,0.1146011,110900.0,110890.0,1.13537341]
[1757111882814,0.1146011,110900.0,110890.0,0.31277341]
[1757111883020,0.1146011,110900.0,110890.0,0.90335756]
[1757111883216,0.59661695,110900.0,110890.0,0.08075756]
[1757111883416,0.59661695,110900.0,110890.0,0.82531756]
[1757111883721,0.03631,110890.0,110880.0,0.31287341]
[1757111883922,0.1123111,110890.0,110880.0,1.13537341]
[1757111884224,0.1123111,110890.0,110880.0,0.31277341]
[1757111884625,0.1123111,110890.0,110880.0,1.13537341]
[1757111884920,0.1133111,110890.0,110880.0,1.13537341]
[1757111885623,0.1143111,110890.0,110880.0,1.13537341]
[1757111885817,0.1143111,110890.0,110880.0,0.31277341]
[1757111886022,0.1143111,110890.0,110880.0,1.13533341]
[1757111886921,0.1143111,110890.0,110880.0,0.31277341]
[1757111887125,0.1143111,110890.0,110880.0,1.13533341]
[1757111887421,0.1143111,110890.0,110880.0,1.36724594]
[1757111887917,0.34627529,110890.0,110880.0,0.31272175]
[1757111888121,0.59627529,110890.0,110880.0,0.08075756]
[1757111888422,0.59627529,110890.0,110880.0,0.82256]
[1757111888423,0.60542568,110890.0,110880.0,0.82256]
[1757111889223,0.60542568,110890.0,110880.0,1.05452419]
[1757111890920,0.60542568,110890.0,110870.0,0.31282175]
[1757111891124,0.34417529,110880.0,110870.0,0.23206419]
[1757111891325,0.34427529,110880.0,110870.0,1.05452419]
[1757111892327,0.34427529,110880.0,110870.0,1.13530814]
[1757111892927,0.1123111,110880.0,110870.0,1.13530814]
[1757111893121,0.34427529,110880.0,110870.0,1.13530814]
[1757111893521,0.34427529,110880.0,110870.0,1.13630814]
[1757111894621,0.1123111,110880.0,110870.0,1.13630814]
[1757111894828,0.1123111,110880.0,110870.0,1.05552419]
[1757111895228,0.1123111,110880.0,110870.0,1.13628765]
[1757111901132,0.0001,110880.0,110870.0,1.61825184]
[1757111904430,0.01355,110880.0,110870.0,1.61825184]
[1757111906631,0.01355,110880.0,110870.0,1.15432346]
[1757111906832,0.01355,110880.0,110870.0,1.61825184]
[1757111907736,0.0894511,110880.0,110870.0,1.61825184]
[1757111909240,0.0894511,110880.0,110870.0,1.53748838]
[1757111911340,0.0894511,110880.0,110870.0,1.65058265]
[1757111913340,0.0760011,110880.0,110870.0,1.65058265]
[1757111913542,0.0760011,110880.0,110870.0,1.73142205]
[1757111913741,0.0760011,110880.0,110870.0,1.6183192]
[1757111914740,0.0760011,110880.0,110870.0,1.38635501]
[1757111914942,0.0760011,110880.0,110870.0,1.6183192]
[1757111917548,0.0001,110880.0,110870.0,1.62767588]
[1757111917744,0.0001,110880.0,110870.0,1.74077015]
[1757111918147,0.0001,110880.0,110870.0,1.62767588]
[1757111919242,0.0001,110880.0,110870.0,1.37767588]
[1757111922646,0.0001,110880.0,110870.0,1.4907904]
[1757111925249,0.0001,110880.0,110870.0,0.6682304]
[1757111925449,0.0001,110880.0,110870.0,1.4907104]
[1757111926959,0.0001,110880.0,110870.0,0.6682304]
[1757111927156,0.0001,110880.0,110870.0,1.4907104]
[1757111932370,0.0001,110880.0,110870.0,0.6682304]
[1757111932569,0.0001,110880.0,110870.0,1.4906704]
[1757111933161,0.0001,110880.0,110870.0,1.37755588]
[1757111933362,0.0001,110880.0,110870.0,0.55511588]
[1757111933570,0.0001,110880.0,110870.0,1.37751588]
[1757111933771,0.0760011,110880.0,110870.0,1.37751588]
[1757111934370,0.0001,110880.0,110870.0,1.37751588]
[1757111934571,0.0001,110880.0,110870.0,1.62751588]
[1757111939277,0.0001,110880.0,110870.0,1.62747588]
[1757111941877,0.0001,110880.0,110870.0,1.85944007]
[1757111942571,0.0001,110880.0,110870.0,1.97262505]
[1757111943174,0.0001,110880.0,110870.0,1.74066086]
[1757111944881,0.0001,110880.0,110870.0,1.74066116]
[1757111945776,0.0760011,110880.0,110870.0,1.74066116]
[1757111946581,0.0760011,110880.0,110870.0,0.66830116]
[1757111946783,0.0760011,110880.0,110870.0,1.49066116]
[1757111947079,0.1107911,110880.0,110870.0,0.11418498]
[1757111947582,0.1107911,110880.0,110870.0,1.16848547]
[1757111947783,0.1107911,110880.0,110870.0,0.34616547]
[1757111948277,0.1107911,110880.0,110870.0,1.16848547]
[1757111948477,0.0886511,110880.0,110870.0,1.16848547]
[1757111952180,0.0760011,110880.0,110870.0,1.16848547]
[1757111952386,0.0760011,110880.0,110870.0,1.25867327]
[1757111952684,0.0760011,110880.0,110870.0,0.32316829]
[1757111952882,0.0760011,110880.0,110870.0,1.14548829]
[1757111955188,0.0886511,110880.0,110870.0,1.14548829]
[1757111956688,0.0886511,110880.0,110870.0,1.05530049]
[1757111957186,0.0760011,110880.0,110870.0,1.05530049]
[1757111958089,0.0898211,110880.0,110870.0,1.65530049]
[1757111958593,0.0898211,110880.0,110870.0,1.74548809]
[1757111958787,0.0760011,110880.0,110870.0,1.74548809]
[1757111960290,0.0760011,110880.0,110870.0,1.14548809]
[1757111960590,0.0760011,110880.0,110870.0,0.9135076]
[1757111960793,0.0760011,110880.0,110870.0,1.14548809]
[1757111961790,0.0760011,110880.0,110870.0,1.37746858]
[1757111961991,0.0001,110880.0,110870.0,1.37746858]
[1757111962193,0.0001,110880.0,110870.0,1.87746858]
[1757111963396,0.0001,110880.0,110870.0,1.37746858]
[1757111967191,0.0001,110880.0,110870.0,1.62746858]
[1757111967497,0.0001,110890.0,110880.0,0.0901795]
[1757111967795,0.0759011,110890.0,110880.0,0.66730485]
[1757111968695,0.0001,110900.0,110890.0,0.0901714]
[1757111968994,0.03425,110910.0,110890.0,1.14439189]
[1757111969197,0.0759011,110900.0,110890.0,0.9124114]
[1757111969589,0.0759011,110900.0,110890.0,1.02552166]
[1757111970496,0.0759011,110900.0,110890.0,1.25750215]
[1757111970894,0.0779011,110900.0,110890.0,1.25750215]
[1757111971397,0.0799011,110900.0,110890.0,1.25750215]
[1757111974994,0.0799011,110900.0,110890.0,1.3299054]
[1757111975193,0.0799011,110900.0,110890.0,0.18551351]
[1757111975194,0.1147211,110900.0,110890.0,0.18551351]
[1757111975394,0.1147211,110900.0,110890.0,1.239654]
[1757111975904,0.0937211,110900.0,110890.0,1.239654]
[1757111976501,0.0799011,110900.0,110890.0,1.239654]
[1757111977706,0.0799011,110900.0,110890.0,1.20724773]
[1757111978204,0.0799011,110900.0,110890.0,1.12654374]